[Event "December 19 Late 2023"]
[Site "https://www.chess.com"]
[Date "2023.12.19"]
[Round "2"]
[White "Reprintsev, Alexander"]
[Black "Maurizzi, Marc`Andria"]
[Result "0-1"]
[Board "60"]
[TimeControl "180+1"]
[WhiteFideId "14100541"]
[BlackFideId "36083534"]
[WhiteElo "2229"]
[BlackElo "2417"]
[WhiteTeam "UKR"]
[BlackTeam "FRA"]
[WhiteClock "0:00:18"]
[BlackClock "0:01:14"]

1. e4 {[%clk 0:03:00]}  c5 {[%clk 0:02:57]} 2. b3 {[%clk 0:03:00]}  Nf6 {[%clk 0:02:55]} 3. e5 {[%clk 0:02:59]}  Nd5 {[%clk 0:02:55]} 4. Nc3 {[%clk 0:02:59]}  Nxc3 {[%clk 0:02:53]} 5. dxc3 {[%clk 0:02:59]}  Nc6 {[%clk 0:02:54]} 6. Nf3 {[%clk 0:02:58]}  g6 {[%clk 0:02:54]} 7. Bc4 {[%clk 0:02:58]}  Bg7 {[%clk 0:02:55]} 8. O-O {[%clk 0:02:55]}  O-O {[%clk 0:02:54]} 9. Bf4 {[%clk 0:02:52]}  d6 {[%clk 0:02:41]} 10. exd6 {[%clk 0:02:49]}  Bxc3 {[%clk 0:02:42]} 11. dxe7 {[%clk 0:02:49]}  Nxe7 {[%clk 0:02:38]} 12. Qxd8 {[%clk 0:02:31]}  Rxd8 {[%clk 0:02:37]} 13. Rad1 {[%clk 0:02:23]}  Be6 {[%clk 0:02:33]} 14. Bxe6 {[%clk 0:02:20]}  fxe6 {[%clk 0:02:34]} 15. Be5 {[%clk 0:02:15]}  Bxe5 {[%clk 0:02:24]} 16. Nxe5 {[%clk 0:02:15]}  Nd5 {[%clk 0:02:25]} 17. a3 {[%clk 0:02:10]}  Nc3 {[%clk 0:02:24]} 18. Rd3 {[%clk 0:02:05]}  Rxd3 {[%clk 0:02:24]} 19. Nxd3 {[%clk 0:02:05]}  b6 {[%clk 0:02:23]} 20. Re1 {[%clk 0:02:05]}  Kf7 {[%clk 0:02:23]} 21. Re3 {[%clk 0:01:44]}  Nd5 {[%clk 0:02:17]} 22. Rf3+ {[%clk 0:01:39]}  Kg7 {[%clk 0:02:16]} 23. c4 {[%clk 0:01:36]}  Ne7 {[%clk 0:02:15]} 24. Nf4 {[%clk 0:01:34]}  e5 {[%clk 0:02:12]} 25. Ne6+ {[%clk 0:01:32]}  Kg8 {[%clk 0:02:13]} 26. g4 {[%clk 0:01:31]}  Nc6 {[%clk 0:02:11]} 27. Re3 {[%clk 0:01:26]}  Re8 {[%clk 0:02:10]} 28. Nc7 {[%clk 0:01:23]}  Rf8 {[%clk 0:02:07]} 29. Nd5 {[%clk 0:01:18]}  Kg7 {[%clk 0:02:06]} 30. h3 {[%clk 0:01:17]}  Kf7 {[%clk 0:01:59]} 31. Rf3+ {[%clk 0:01:07]}  Kg7 {[%clk 0:01:58]} 32. Re3 {[%clk 0:01:06]}  h5 {[%clk 0:01:56]} 33. gxh5 {[%clk 0:01:06]}  gxh5 {[%clk 0:01:57]} 34. Rg3+ {[%clk 0:00:57]}  Kh6 {[%clk 0:01:57]} 35. h4 {[%clk 0:00:55]}  Nd4 {[%clk 0:01:55]} 36. Kg2 {[%clk 0:00:53]}  Nf5 {[%clk 0:01:54]} 37. Rh3 {[%clk 0:00:51]}  Rg8+ {[%clk 0:01:54]} 38. Kf1 {[%clk 0:00:51]}  Rg4 {[%clk 0:01:54]} 39. Ne3 {[%clk 0:00:49]}  Nxe3+ {[%clk 0:01:54]} 40. fxe3 {[%clk 0:00:43]}  Kg6 {[%clk 0:01:54]} 41. Kf2 {[%clk 0:00:43]}  Kf5 {[%clk 0:01:54]} 42. Rf3+ {[%clk 0:00:41]}  Ke4 {[%clk 0:01:54]} 43. Rf7 {[%clk 0:00:38]}  Rxh4 {[%clk 0:01:53]} 44. Rxa7 {[%clk 0:00:38]}  Rh2+ {[%clk 0:01:53]} 45. Kg3 {[%clk 0:00:38]}  Rb2 {[%clk 0:01:54]} 46. b4 {[%clk 0:00:37]}  cxb4 {[%clk 0:01:52]} 47. axb4 {[%clk 0:00:37]}  Rxb4 {[%clk 0:01:52]} 48. Rh7 {[%clk 0:00:33]}  Rxc4 {[%clk 0:01:32]} 49. Rxh5 {[%clk 0:00:33]}  Rc3 {[%clk 0:01:32]} 50. Kf2 {[%clk 0:00:32]}  Rc2+ {[%clk 0:01:29]} 51. Ke1 {[%clk 0:00:30]}  b5 {[%clk 0:01:29]} 52. Kd1 {[%clk 0:00:31]}  Rg2 {[%clk 0:01:26]} 53. Kc1 {[%clk 0:00:29]}  Rg3 {[%clk 0:01:22]} 54. Kd2 {[%clk 0:00:28]}  Rg2+ {[%clk 0:01:19]} 55. Kc3 {[%clk 0:00:28]}  Re2 {[%clk 0:01:17]} 56. Kb4 {[%clk 0:00:22]}  Rxe3 {[%clk 0:01:17]} 57. Kxb5 {[%clk 0:00:23]}  Rc3 {[%clk 0:01:17]} 58. Kb4 {[%clk 0:00:20]}  Rc8 {[%clk 0:01:17]} 59. Rh4+ {[%clk 0:00:20]}  Kd3 {[%clk 0:01:17]} 60. Rh3+ {[%clk 0:00:20]}  Kd4 {[%clk 0:01:17]} 61. Kb3 {[%clk 0:00:18]}  e4 {[%clk 0:01:16]} 62. Rh7 {[%clk 0:00:19]}  Kd3 {[%clk 0:01:16]} 63. Rd7+ {[%clk 0:00:19]}  Ke2 {[%clk 0:01:16]} 64. Re7 {[%clk 0:00:20]}  e3 {[%clk 0:01:16]} 65. Rd7 {[%clk 0:00:20]}  Kf2 {[%clk 0:01:16]} 66. Kb2 {[%clk 0:00:21]}  Rf8 {[%clk 0:01:13]} 67. Kc2 {[%clk 0:00:18]}  e2 {[%clk 0:01:14]} 0-1

[Event "December 19 Late 2023"]
[Site "https://www.chess.com"]
[Date "2023.12.19"]
[Round "2"]
[White "Apoorv Kamble"]
[Black "Ang, Ern Jie Anderson"]
[Result "0-1"]
[Board "61"]
[TimeControl "180+1"]
[WhiteFideId "25683012"]
[BlackFideId "5736200"]
[WhiteElo "1940"]
[BlackElo "1941"]
[WhiteTeam "IND"]
[BlackTeam "MAS"]
[WhiteClock "0:00:00"]
[BlackClock "0:00:14"]

1. e4 {[%clk 0:03:00]}  c5 {[%clk 0:02:58]} 2. Nc3 {[%clk 0:02:57]}  Nc6 {[%clk 0:02:57]} 3. Nf3 {[%clk 0:02:57]}  g6 {[%clk 0:02:56]} 4. Bc4 {[%clk 0:02:56]}  Bg7 {[%clk 0:02:56]} 5. O-O {[%clk 0:02:56]}  e6 {[%clk 0:02:54]} 6. a4 {[%clk 0:02:53]}  Nge7 {[%clk 0:02:54]} 7. Re1 {[%clk 0:02:50]}  O-O {[%clk 0:02:53]} 8. e5 {[%clk 0:02:50]}  Qc7 {[%clk 0:02:48]} 9. Nb5 {[%clk 0:02:50]}  Qb8 {[%clk 0:02:48]} 10. d4 {[%clk 0:02:21]}  a6 {[%clk 0:02:47]} 11. Nd6 {[%clk 0:02:21]}  cxd4 {[%clk 0:02:46]} 12. Bf4 {[%clk 0:02:21]}  Nf5 {[%clk 0:02:33]} 13. Nxf5 {[%clk 0:02:18]}  gxf5 {[%clk 0:02:34]} 14. Ra3 {[%clk 0:01:58]}  Qa7 {[%clk 0:02:19]} 15. Ng5 {[%clk 0:01:55]}  h6 {[%clk 0:02:02]} 16. Qh5 {[%clk 0:01:44]}  hxg5 {[%clk 0:01:54]} 17. Qxg5 {[%clk 0:01:29]}  f6 {[%clk 0:01:51]} 18. exf6 {[%clk 0:01:20]}  Rxf6 {[%clk 0:01:52]} 19. Rg3 {[%clk 0:01:16]}  Rf7 {[%clk 0:01:52]} 20. Bd6 {[%clk 0:01:12]}  b5 {[%clk 0:01:43]} 21. Bd3 {[%clk 0:01:06]}  Bb7 {[%clk 0:01:37]} 22. Rh3 {[%clk 0:00:43]}  Qb6 {[%clk 0:01:26]} 23. Qh4 {[%clk 0:00:30]}  Bf6 {[%clk 0:01:06]} 24. Rg3+ {[%clk 0:00:30]}  Bg7 {[%clk 0:01:03]} 25. Rh3 {[%clk 0:00:30]}  Rf6 {[%clk 0:00:49]} 26. Qh7+ {[%clk 0:00:29]}  Kf7 {[%clk 0:00:49]} 27. Rg3 {[%clk 0:00:27]}  Rg8 {[%clk 0:00:44]} 28. Be2 {[%clk 0:00:27]}  e5 {[%clk 0:00:27]} 29. Bh5+ {[%clk 0:00:21]}  Ke6 {[%clk 0:00:27]} 30. Qxg8+ {[%clk 0:00:19]}  Kxd6 {[%clk 0:00:26]} 31. Qxg7 {[%clk 0:00:20]}  Re6 {[%clk 0:00:26]} 32. Rg6 {[%clk 0:00:20]}  Qa5 {[%clk 0:00:24]} 33. Rf1 {[%clk 0:00:20]}  Ne7 {[%clk 0:00:19]} 34. Rxe6+ {[%clk 0:00:16]}  dxe6 {[%clk 0:00:20]} 35. Qf8 {[%clk 0:00:17]}  Bc6 {[%clk 0:00:18]} 36. axb5 {[%clk 0:00:17]}  axb5 {[%clk 0:00:18]} 37. h4 {[%clk 0:00:16]}  Qd2 {[%clk 0:00:17]} 38. Qd8+ {[%clk 0:00:16]}  Bd7 {[%clk 0:00:17]} 39. Qb6+ {[%clk 0:00:16]}  Nc6 {[%clk 0:00:17]} 40. Qxb5 {[%clk 0:00:17]}  Qxc2 {[%clk 0:00:17]} 41. Bd1 {[%clk 0:00:14]}  Qd2 {[%clk 0:00:16]} 42. h5 {[%clk 0:00:14]}  Qg5 {[%clk 0:00:16]} 43. Qb7 {[%clk 0:00:13]}  e4 {[%clk 0:00:14]} 44. Qa6 {[%clk 0:00:14]}  e5 {[%clk 0:00:14]} 45. Qa3+ {[%clk 0:00:14]}  Kc7 {[%clk 0:00:14]} 46. Qc5 {[%clk 0:00:14]}  f4 {[%clk 0:00:14]} 47. b4 {[%clk 0:00:13]}  f3 {[%clk 0:00:14]} 48. g3 {[%clk 0:00:12]}  Qxh5 {[%clk 0:00:14]} 49. b5 {[%clk 0:00:04]}  Qh3 {[%clk 0:00:14]} 50. b6+ {[%clk 0:00:03]}  Kb7 {[%clk 0:00:14]} 51. Bxf3 {[%clk 0:00:00]}  exf3 {[%clk 0:00:14]} 0-1

[Event "December 19 Late 2023"]
[Site "https://www.chess.com"]
[Date "2023.12.19"]
[Round "2"]
[White "Sahakyan, Aleks"]
[Black "Devagharan, Devina"]
[Result "1-0"]
[Board "62"]
[TimeControl "180+1"]
[WhiteFideId "13316338"]
[BlackFideId "2061600"]
[WhiteElo "2292"]
[BlackElo "2440"]
[WhiteTeam "ARM"]
[BlackTeam "USA"]
[WhiteClock "0:00:08"]
[BlackClock "0:00:00"]

1. e4 {[%clk 0:03:00]}  c5 {[%clk 0:02:53]} 2. Nf3 {[%clk 0:03:00]}  d6 {[%clk 0:02:53]} 3. Nc3 {[%clk 0:02:57]}  Nf6 {[%clk 0:02:51]} 4. e5 {[%clk 0:02:56]}  dxe5 {[%clk 0:02:46]} 5. Nxe5 {[%clk 0:02:57]}  e6 {[%clk 0:02:42]} 6. d3 {[%clk 0:02:51]}  Be7 {[%clk 0:02:31]} 7. g3 {[%clk 0:02:50]}  O-O {[%clk 0:02:29]} 8. Bg2 {[%clk 0:02:50]}  Nbd7 {[%clk 0:02:30]} 9. Nc4 {[%clk 0:02:50]}  Nb6 {[%clk 0:02:21]} 10. O-O {[%clk 0:02:48]}  Nbd5 {[%clk 0:02:16]} 11. a4 {[%clk 0:02:46]}  Bd7 {[%clk 0:02:00]} 12. Ne5 {[%clk 0:02:42]}  Qc7 {[%clk 0:01:50]} 13. Nxd7 {[%clk 0:02:40]}  Qxd7 {[%clk 0:01:49]} 14. Re1 {[%clk 0:02:40]}  Nxc3 {[%clk 0:01:43]} 15. bxc3 {[%clk 0:02:40]}  Rfd8 {[%clk 0:01:42]} 16. c4 {[%clk 0:02:39]}  Rac8 {[%clk 0:01:37]} 17. a5 {[%clk 0:02:37]}  b5 {[%clk 0:01:20]} 18. axb6 {[%clk 0:02:32]}  axb6 {[%clk 0:01:20]} 19. Rb1 {[%clk 0:02:25]}  Rb8 {[%clk 0:01:14]} 20. Bf4 {[%clk 0:02:24]}  Bd6 {[%clk 0:01:14]} 21. Qf3 {[%clk 0:02:15]}  Bxf4 {[%clk 0:01:13]} 22. Qxf4 {[%clk 0:02:15]}  b5 {[%clk 0:01:10]} 23. cxb5 {[%clk 0:02:11]}  Rxb5 {[%clk 0:01:10]} 24. Rxb5 {[%clk 0:02:11]}  Qxb5 {[%clk 0:01:11]} 25. h4 {[%clk 0:02:11]}  Nd5 {[%clk 0:01:02]} 26. Bxd5 {[%clk 0:02:07]}  exd5 {[%clk 0:00:45]} 27. Qc7 {[%clk 0:01:58]}  Rf8 {[%clk 0:00:38]} 28. Qd6 {[%clk 0:01:55]}  c4 {[%clk 0:00:29]} 29. d4 {[%clk 0:01:45]}  Qb2 {[%clk 0:00:24]} 30. Qxd5 {[%clk 0:01:32]}  Qxc2 {[%clk 0:00:24]} 31. Re7 {[%clk 0:01:30]}  c3 {[%clk 0:00:21]} 32. Rc7 {[%clk 0:01:30]}  Qd1+ {[%clk 0:00:18]} 33. Kg2 {[%clk 0:01:30]}  c2 {[%clk 0:00:19]} 34. Qc5 {[%clk 0:01:19]}  c1=Q {[%clk 0:00:19]} 35. Qxc1 {[%clk 0:01:17]}  Qxd4 {[%clk 0:00:19]} 36. Qc6 {[%clk 0:01:17]}  Qb2 {[%clk 0:00:16]} 37. h5 {[%clk 0:01:15]}  Qd2 {[%clk 0:00:14]} 38. Qc5 {[%clk 0:01:08]}  h6 {[%clk 0:00:12]} 39. Qf5 {[%clk 0:01:02]}  Qd6 {[%clk 0:00:11]} 40. Rc4 {[%clk 0:00:55]}  Rd8 {[%clk 0:00:09]} 41. Re4 {[%clk 0:00:47]}  Qd5 {[%clk 0:00:07]} 42. Qf3 {[%clk 0:00:47]}  Qd7 {[%clk 0:00:05]} 43. Kh2 {[%clk 0:00:46]}  Re8 {[%clk 0:00:04]} 44. Rf4 {[%clk 0:00:45]}  Rf8 {[%clk 0:00:04]} 45. Rg4 {[%clk 0:00:40]}  Kh8 {[%clk 0:00:02]} 46. Qf4 {[%clk 0:00:38]}  Qe6 {[%clk 0:00:02]} 47. Qf3 {[%clk 0:00:38]}  Rg8 {[%clk 0:00:02]} 48. Re4 {[%clk 0:00:37]}  Qd7 {[%clk 0:00:02]} 49. Rf4 {[%clk 0:00:37]}  Rf8 {[%clk 0:00:03]} 50. Kg2 {[%clk 0:00:37]}  Kg8 {[%clk 0:00:03]} 51. Rf5 {[%clk 0:00:37]}  Rb8 {[%clk 0:00:03]} 52. Rd5 {[%clk 0:00:35]}  Qe7 {[%clk 0:00:04]} 53. Qf5 {[%clk 0:00:34]}  Rf8 {[%clk 0:00:04]} 54. Rd7 {[%clk 0:00:31]}  Qb4 {[%clk 0:00:03]} 55. g4 {[%clk 0:00:31]}  Qb3 {[%clk 0:00:04]} 56. g5 {[%clk 0:00:23]}  hxg5 {[%clk 0:00:04]} 57. Qxg5 {[%clk 0:00:23]}  Qb6 {[%clk 0:00:05]} 58. Rd3 {[%clk 0:00:20]}  Qh6 {[%clk 0:00:05]} 59. Qf5 {[%clk 0:00:15]}  Kh8 {[%clk 0:00:06]} 60. Rg3 {[%clk 0:00:15]}  Qh7 {[%clk 0:00:06]} 61. Qf4 {[%clk 0:00:15]}  Qh6 {[%clk 0:00:06]} 62. Qg4 {[%clk 0:00:15]}  Kh7 {[%clk 0:00:06]} 63. Qf5+ {[%clk 0:00:15]}  Kh8 {[%clk 0:00:06]} 64. Qc5 {[%clk 0:00:13]}  Re8 {[%clk 0:00:05]} 65. Qb5 {[%clk 0:00:12]}  Rc8 {[%clk 0:00:05]} 66. Qf5 {[%clk 0:00:08]}  Qc6+ {[%clk 0:00:03]} 67. Kh2 {[%clk 0:00:08]}  Rf8 {[%clk 0:00:03]} 68. h6 {[%clk 0:00:08]}  g6 {[%clk 0:00:03]} 69. Qe5+ {[%clk 0:00:08]}  f6 {[%clk 0:00:00]} 70. Qe7 {[%clk 0:00:08]} 1-0

[Event "December 19 Late 2023"]
[Site "https://www.chess.com"]
[Date "2023.12.19"]
[Round "2"]
[White "Poormosavi, Seyed Kian"]
[Black "Figorito, Nick"]
[Result "1-0"]
[Board "64"]
[TimeControl "180+1"]
[WhiteFideId "12585807"]
[BlackFideId "30923689"]
[WhiteElo "2296"]
[BlackElo "2429"]
[WhiteTeam "IRI"]
[BlackTeam "USA"]
[WhiteClock "0:00:34"]
[BlackClock "0:00:00"]

1. Nf3 {[%clk 0:02:56]}  Nf6 {[%clk 0:03:00]} 2. g3 {[%clk 0:02:56]}  g6 {[%clk 0:02:59]} 3. Bg2 {[%clk 0:02:57]}  Bg7 {[%clk 0:03:00]} 4. O-O {[%clk 0:02:58]}  O-O {[%clk 0:03:01]} 5. d4 {[%clk 0:02:59]}  c6 {[%clk 0:03:01]} 6. c3 {[%clk 0:02:58]}  d5 {[%clk 0:03:02]} 7. a4 {[%clk 0:02:59]}  a5 {[%clk 0:03:01]} 8. Bf4 {[%clk 0:03:00]}  Bf5 {[%clk 0:03:01]} 9. Nbd2 {[%clk 0:03:00]}  Ne4 {[%clk 0:03:02]} 10. Re1 {[%clk 0:02:59]}  Nxd2 {[%clk 0:03:02]} 11. Nxd2 {[%clk 0:02:57]}  Qb6 {[%clk 0:02:52]} 12. Ra3 {[%clk 0:02:51]}  Nd7 {[%clk 0:02:28]} 13. e4 {[%clk 0:02:50]}  dxe4 {[%clk 0:02:28]} 14. Nxe4 {[%clk 0:02:48]}  Bxe4 {[%clk 0:02:28]} 15. Rb3 {[%clk 0:02:40]}  Qa7 {[%clk 0:02:00]} 16. Bxe4 {[%clk 0:02:32]}  e6 {[%clk 0:01:57]} 17. Bd6 {[%clk 0:02:29]}  Rfd8 {[%clk 0:01:56]} 18. Qf3 {[%clk 0:02:26]}  Qa6 {[%clk 0:01:36]} 19. Bd3 {[%clk 0:02:23]}  Qa7 {[%clk 0:01:34]} 20. h4 {[%clk 0:02:24]}  h5 {[%clk 0:01:33]} 21. Qe2 {[%clk 0:02:09]}  Bf8 {[%clk 0:01:25]} 22. Bc7 {[%clk 0:02:05]}  Re8 {[%clk 0:01:18]} 23. Qc2 {[%clk 0:01:49]}  b5 {[%clk 0:01:09]} 24. Bf4 {[%clk 0:01:28]}  bxa4 {[%clk 0:01:08]} 25. Ra3 {[%clk 0:01:29]}  Bxa3 {[%clk 0:00:53]} 26. bxa3 {[%clk 0:01:30]}  Nf6 {[%clk 0:00:52]} 27. Qxa4 {[%clk 0:01:29]}  Nd5 {[%clk 0:00:51]} 28. Bd2 {[%clk 0:01:28]}  c5 {[%clk 0:00:49]} 29. c4 {[%clk 0:01:24]}  Nb6 {[%clk 0:00:47]} 30. Qc2 {[%clk 0:01:12]}  cxd4 {[%clk 0:00:47]} 31. Bg5 {[%clk 0:01:13]}  Rac8 {[%clk 0:00:37]} 32. Bf6 {[%clk 0:01:13]}  Nd5 {[%clk 0:00:37]} 33. Be5 {[%clk 0:01:13]}  Ne7 {[%clk 0:00:28]} 34. Rb1 {[%clk 0:01:10]}  Nf5 {[%clk 0:00:27]} 35. Rb5 {[%clk 0:01:06]}  Rc5 {[%clk 0:00:24]} 36. a4 {[%clk 0:01:06]}  Rxb5 {[%clk 0:00:21]} 37. cxb5 {[%clk 0:01:07]}  Qb7 {[%clk 0:00:17]} 38. Qd2 {[%clk 0:01:03]}  Qf3 {[%clk 0:00:14]} 39. b6 {[%clk 0:00:59]}  Rc8 {[%clk 0:00:14]} 40. Bf1 {[%clk 0:00:58]}  Qe4 {[%clk 0:00:10]} 41. Bc7 {[%clk 0:00:56]}  Qc6 {[%clk 0:00:09]} 42. Bg2 {[%clk 0:00:55]}  Qd7 {[%clk 0:00:06]} 43. Qxa5 {[%clk 0:00:53]}  d3 {[%clk 0:00:05]} 44. b7 {[%clk 0:00:53]}  d2 {[%clk 0:00:04]} 45. bxc8=Q+ {[%clk 0:00:49]}  Qxc8 {[%clk 0:00:03]} 46. Qxd2 {[%clk 0:00:39]}  Qxc7 {[%clk 0:00:03]} 47. a5 {[%clk 0:00:40]}  Qa7 {[%clk 0:00:03]} 48. Qd8+ {[%clk 0:00:36]}  Kg7 {[%clk 0:00:03]} 49. Qb6 {[%clk 0:00:36]}  Qd7 {[%clk 0:00:02]} 50. a6 {[%clk 0:00:34]}  Qd1+ {[%clk 0:00:03]} 51. Kh2 {[%clk 0:00:35]}  Qa4 {[%clk 0:00:00]} 52. a7 {[%clk 0:00:34]} 1-0

[Event "December 19 Late 2023"]
[Site "https://www.chess.com"]
[Date "2023.12.19"]
[Round "2"]
[White "Storn, Justin"]
[Black "Bardyk, Artem"]
[Result "0-1"]
[Board "67"]
[TimeControl "180+1"]
[WhiteFideId "30922720"]
[BlackFideId "34349979"]
[WhiteElo "2406"]
[BlackElo "2300"]
[WhiteTeam "USA"]
[BlackTeam "RUS"]
[WhiteClock "0:01:03"]
[BlackClock "0:02:09"]

1. d4 {[%clk 0:03:00]}  d5 {[%clk 0:02:59]} 2. c4 {[%clk 0:03:00]}  e6 {[%clk 0:02:58]} 3. Nc3 {[%clk 0:03:00]}  c5 {[%clk 0:02:57]} 4. cxd5 {[%clk 0:02:57]}  cxd4 {[%clk 0:02:57]} 5. Qa4+ {[%clk 0:02:58]}  Bd7 {[%clk 0:02:57]} 6. Qxd4 {[%clk 0:02:58]}  exd5 {[%clk 0:02:58]} 7. Qxd5 {[%clk 0:02:54]}  Nf6 {[%clk 0:02:57]} 8. Qb3 {[%clk 0:02:53]}  Nc6 {[%clk 0:02:54]} 9. Bf4 {[%clk 0:02:35]}  Bb4 {[%clk 0:02:50]} 10. Nf3 {[%clk 0:02:28]}  O-O {[%clk 0:02:47]} 11. e3 {[%clk 0:02:09]}  Be6 {[%clk 0:02:47]} 12. Qc2 {[%clk 0:02:06]}  Rc8 {[%clk 0:02:47]} 13. Be2 {[%clk 0:01:45]}  Nd5 {[%clk 0:02:37]} 14. Bg5 {[%clk 0:01:32]}  Qa5 {[%clk 0:02:35]} 15. O-O {[%clk 0:01:32]}  Bxc3 {[%clk 0:02:33]} 16. bxc3 {[%clk 0:01:32]}  Nxc3 {[%clk 0:02:34]} 17. Bd3 {[%clk 0:01:30]}  Nb4 {[%clk 0:02:14]} 18. Qd2 {[%clk 0:01:29]}  Nxd3 {[%clk 0:02:12]} 19. Qxd3 {[%clk 0:01:25]}  Bc4 {[%clk 0:02:11]} 20. Qd4 {[%clk 0:01:03]}  Ne2+ {[%clk 0:02:09]} 0-1

[Event "December 19 Late 2023"]
[Site "https://www.chess.com"]
[Date "2023.12.19"]
[Round "2"]
[White "Dobrikov, Marco"]
[Black "Carrasco Miranda, Andres"]
[Result "1-0"]
[Board "68"]
[TimeControl "180+1"]
[WhiteFideId "12950378"]
[BlackFideId "3405990"]
[WhiteElo "2394"]
[BlackElo "2183"]
[WhiteTeam "GER"]
[BlackTeam "CHI"]
[WhiteClock "0:01:27"]
[BlackClock "0:00:47"]

1. c4 {[%clk 0:03:00]}  Nf6 {[%clk 0:02:55]} 2. Nf3 {[%clk 0:03:00]}  g6 {[%clk 0:02:54]} 3. e3 {[%clk 0:03:01]}  Bg7 {[%clk 0:02:54]} 4. d4 {[%clk 0:03:02]}  O-O {[%clk 0:02:54]} 5. Nbd2 {[%clk 0:02:59]}  d5 {[%clk 0:02:51]} 6. b3 {[%clk 0:02:59]}  c5 {[%clk 0:02:50]} 7. Bb2 {[%clk 0:03:00]}  cxd4 {[%clk 0:02:50]} 8. exd4 {[%clk 0:03:00]}  Nc6 {[%clk 0:02:49]} 9. Be2 {[%clk 0:03:00]}  Bf5 {[%clk 0:02:49]} 10. O-O {[%clk 0:03:00]}  Ne4 {[%clk 0:02:49]} 11. Rc1 {[%clk 0:02:54]}  Rc8 {[%clk 0:02:48]} 12. c5 {[%clk 0:02:54]}  Nxd2 {[%clk 0:02:46]} 13. Qxd2 {[%clk 0:02:54]}  Be4 {[%clk 0:02:46]} 14. b4 {[%clk 0:02:53]}  a6 {[%clk 0:02:45]} 15. a4 {[%clk 0:02:54]}  Bxf3 {[%clk 0:02:14]} 16. Bxf3 {[%clk 0:02:54]}  e5 {[%clk 0:02:15]} 17. dxe5 {[%clk 0:02:42]}  Nxe5 {[%clk 0:02:16]} 18. Bxe5 {[%clk 0:02:41]}  Bxe5 {[%clk 0:02:17]} 19. Bxd5 {[%clk 0:02:42]}  a5 {[%clk 0:01:46]} 20. b5 {[%clk 0:02:36]}  Qc7 {[%clk 0:01:45]} 21. g3 {[%clk 0:02:36]}  Rfd8 {[%clk 0:01:44]} 22. Rfd1 {[%clk 0:02:35]}  h5 {[%clk 0:01:43]} 23. c6 {[%clk 0:02:28]}  b6 {[%clk 0:01:42]} 24. Qe3 {[%clk 0:02:04]}  h4 {[%clk 0:01:39]} 25. Bf3 {[%clk 0:01:57]}  hxg3 {[%clk 0:01:36]} 26. hxg3 {[%clk 0:01:58]}  Bxg3 {[%clk 0:01:34]} 27. fxg3 {[%clk 0:01:53]}  Qxg3+ {[%clk 0:01:34]} 28. Kf1 {[%clk 0:01:54]}  Re8 {[%clk 0:01:29]} 29. Qf2 {[%clk 0:01:52]}  Qf4 {[%clk 0:01:19]} 30. Bd5 {[%clk 0:01:35]}  Qc7 {[%clk 0:01:09]} 31. Bc4 {[%clk 0:01:31]}  Re7 {[%clk 0:00:59]} 32. Rd7 {[%clk 0:01:26]}  Rxd7 {[%clk 0:00:58]} 33. cxd7 {[%clk 0:01:27]}  Qxd7 {[%clk 0:00:47]} 34. Qxf7+ {[%clk 0:01:27]} 1-0

[Event "December 19 Late 2023"]
[Site "https://www.chess.com"]
[Date "2023.12.19"]
[Round "2"]
[White "Fernandez Diaz, Cristian"]
[Black "Zhu, Jiner"]
[Result "0-1"]
[Board "70"]
[TimeControl "180+1"]
[WhiteFideId "22256687"]
[BlackFideId "8608059"]
[WhiteElo "2170"]
[BlackElo "2384"]
[WhiteTeam "ESP"]
[BlackTeam "CHN"]
[WhiteClock "0:00:00"]
[BlackClock "0:00:12"]

1. e4 {[%clk 0:03:00]}  e5 {[%clk 0:02:54]} 2. Nf3 {[%clk 0:03:00]}  Nf6 {[%clk 0:02:54]} 3. d4 {[%clk 0:02:56]}  exd4 {[%clk 0:02:50]} 4. e5 {[%clk 0:02:55]}  Ne4 {[%clk 0:02:42]} 5. Qxd4 {[%clk 0:02:54]}  d5 {[%clk 0:02:41]} 6. exd6 {[%clk 0:02:51]}  Nxd6 {[%clk 0:02:41]} 7. Qf4 {[%clk 0:02:49]}  Be7 {[%clk 0:02:41]} 8. Bd3 {[%clk 0:02:47]}  Nc6 {[%clk 0:02:35]} 9. Nc3 {[%clk 0:02:46]}  Be6 {[%clk 0:02:34]} 10. O-O {[%clk 0:02:44]}  Qd7 {[%clk 0:02:34]} 11. Re1 {[%clk 0:02:40]}  O-O-O {[%clk 0:02:33]} 12. Qa4 {[%clk 0:02:35]}  Kb8 {[%clk 0:02:30]} 13. Be3 {[%clk 0:02:32]}  Bf6 {[%clk 0:02:24]} 14. Ne4 {[%clk 0:02:24]}  Nxe4 {[%clk 0:02:10]} 15. Bxe4 {[%clk 0:02:25]}  Nd4 {[%clk 0:02:08]} 16. Qxd7 {[%clk 0:02:20]}  Nxf3+ {[%clk 0:02:08]} 17. Bxf3 {[%clk 0:02:20]}  Rxd7 {[%clk 0:02:09]} 18. c3 {[%clk 0:02:17]}  Rhd8 {[%clk 0:02:09]} 19. a3 {[%clk 0:02:04]}  Bb3 {[%clk 0:02:07]} 20. g3 {[%clk 0:01:57]}  a5 {[%clk 0:02:05]} 21. a4 {[%clk 0:01:42]}  h6 {[%clk 0:02:04]} 22. h4 {[%clk 0:01:39]}  b6 {[%clk 0:01:36]} 23. Kg2 {[%clk 0:01:35]}  Ka7 {[%clk 0:01:35]} 24. Ra3 {[%clk 0:01:30]}  Bd1 {[%clk 0:01:33]} 25. Ra1 {[%clk 0:01:24]}  Bc2 {[%clk 0:01:31]} 26. Rec1 {[%clk 0:01:19]}  Bb3 {[%clk 0:01:30]} 27. Ra3 {[%clk 0:01:15]}  Be6 {[%clk 0:01:28]} 28. Raa1 {[%clk 0:01:12]}  g5 {[%clk 0:01:17]} 29. hxg5 {[%clk 0:01:02]}  hxg5 {[%clk 0:01:18]} 30. g4 {[%clk 0:00:53]}  Be5 {[%clk 0:01:13]} 31. b4 {[%clk 0:00:48]}  axb4 {[%clk 0:01:10]} 32. a5 {[%clk 0:00:48]}  c5 {[%clk 0:01:02]} 33. cxb4 {[%clk 0:00:35]}  Bxa1 {[%clk 0:00:59]} 34. Rxa1 {[%clk 0:00:36]}  Bd5 {[%clk 0:00:34]} 35. axb6+ {[%clk 0:00:24]}  Kxb6 {[%clk 0:00:35]} 36. bxc5+ {[%clk 0:00:25]}  Kb7 {[%clk 0:00:35]} 37. Rb1+ {[%clk 0:00:16]}  Kc8 {[%clk 0:00:28]} 38. Bxg5 {[%clk 0:00:11]}  Rh8 {[%clk 0:00:28]} 39. Bf4 {[%clk 0:00:07]}  Bxf3+ {[%clk 0:00:20]} 40. Kxf3 {[%clk 0:00:08]}  Rb7 {[%clk 0:00:20]} 41. Ra1 {[%clk 0:00:07]}  Kd7 {[%clk 0:00:20]} 42. Rd1+ {[%clk 0:00:05]}  Kc6 {[%clk 0:00:19]} 43. Bd6 {[%clk 0:00:06]}  Rh3+ {[%clk 0:00:19]} 44. Kg2 {[%clk 0:00:06]}  Rc3 {[%clk 0:00:18]} 45. f3 {[%clk 0:00:05]}  Rbb3 {[%clk 0:00:17]} 46. Rf1 {[%clk 0:00:05]}  Kd5 {[%clk 0:00:17]} 47. Kg3 {[%clk 0:00:05]}  Ke6 {[%clk 0:00:17]} 48. Kf4 {[%clk 0:00:05]}  Rd3 {[%clk 0:00:16]} 49. Re1+ {[%clk 0:00:06]}  Kd5 {[%clk 0:00:15]} 50. Re5+ {[%clk 0:00:05]}  Kc6 {[%clk 0:00:15]} 51. Re7 {[%clk 0:00:05]}  Rxf3+ {[%clk 0:00:15]} 52. Kg5 {[%clk 0:00:06]}  Rbd3 {[%clk 0:00:15]} 53. Rc7+ {[%clk 0:00:05]}  Kb5 {[%clk 0:00:15]} 54. Rb7+ {[%clk 0:00:05]}  Kc4 {[%clk 0:00:16]} 55. Kh5 {[%clk 0:00:02]}  Rd5+ {[%clk 0:00:14]} 56. g5 {[%clk 0:00:01]}  Rff5 {[%clk 0:00:14]} 57. Be7 {[%clk 0:00:00]}  f6 {[%clk 0:00:12]} 0-1